fUSD/lending_fUSD_20240421
["ID","MTS","AMOUNT","RATE_DAILY","PERIOD"]
[323099265,1713659442549,-535.68,0.00016319,2]
[323099267,1713659442558,-500.0,0.00016319,2]
[323099269,1713659442567,-500.0,0.00016319,2]
[323099271,1713659442577,-1873.56,0.00016319,2]
[323099273,1713659442587,-500.0,0.00016319,2]
[323099275,1713659442597,-790.69,0.00016319,2]
[323099277,1713659442606,-500.0,0.00016319,2]
[323099279,1713659442616,-267.47,0.00016319,2]
[323099280,1713659442625,-550.32,0.00016319,2]
[323099281,1713659442635,-503.23,0.00016319,2]
[323099282,1713659442644,-500.0,0.00016319,2]
[323099283,1713659442654,-1032.1,0.00016319,2]
[323099284,1713659442663,-366.36,0.00016319,2]
[323099285,1713659442672,-3558.06,0.00016319,2]
[323099286,1713659442683,-500.0,0.00016319,2]
[323099287,1713659442693,-240.92,0.00016319,2]
[323099288,1713659442702,-500.0,0.00016319,2]
[323099289,1713659442711,-178.26,0.00016319,2]
[323099290,1713659442721,-500.0,0.00016319,2]
[323099291,1713659442730,-500.0,0.00016319,2]
[323099292,1713659442740,-500.0,0.00016319,2]
[323099293,1713659442749,-500.0,0.00016319,2]
[323099294,1713659442759,-517.3,0.00016319,2]
[323099295,1713659442768,-500.0,0.00016319,2]
[323099296,1713659442777,-500.0,0.00016319,2]
[323099297,1713659442786,-500.0,0.00016319,2]
[323099298,1713659442796,-246.73,0.00016319,2]
[323099299,1713659442805,-500.0,0.00016319,2]
[323099300,1713659442814,-500.0,0.00016319,2]
[323099301,1713659442823,-500.0,0.00016319,2]
[323099302,1713659442833,-161.85509228,0.00016319,2]
[323099303,1713659442847,-338.14490772,0.00016319,2]
[323099304,1713659442856,-14.08500564,0.00016319,2]
[323099305,1713659442869,-485.91499436,0.00016319,2]
[323099306,1713659442878,-6.59735523,0.00016319,2]
[323099307,1713659443092,-1098.34,0.00016045,2]
[323099308,1713659443102,-493.40264477,0.00016319,2]
[323099309,1713659443113,-500.0,0.00016319,2]
[323099310,1713659443122,-500.0,0.00016319,2]
[323099311,1713659443132,-500.0,0.00016319,2]
[323099312,1713659443143,-500.0,0.00016319,2]
[323099313,1713659443152,-500.0,0.00016319,2]
[323099314,1713659443161,-500.0,0.00016319,2]
[323099315,1713659443170,-500.0,0.00016319,2]
[323099316,1713659443180,-500.0,0.00016319,2]
[323099317,1713659443189,-751.7,0.00016319,2]
[323099318,1713659443199,-500.0,0.00016319,2]
[323099319,1713659443208,-1010.43,0.00016319,2]
[323099320,1713659443217,-505.67,0.00016319,2]
[323099321,1713659443227,-500.0,0.00016319,2]
[323099322,1713659443237,-421.42,0.00016319,2]
[323099323,1713659443247,-500.0,0.00016319,2]
[323099324,1713659443257,-500.0,0.00016319,2]
[323099325,1713659443266,-460.86,0.00016319,2]
[323099326,1713659443275,-500.0,0.00016319,2]
[323099327,1713659443285,-1098.34,0.00016319,2]
[323099328,1713659443294,-500.0,0.0001632,2]
[323099329,1713659443304,-270.16,0.0001632,2]
[323099330,1713659443313,-500.0,0.0001632,2]
[323099331,1713659443323,-500.0,0.0001632,2]
[323099332,1713659443332,-500.0,0.00016321,2]
[323099333,1713659443341,-207.1,0.00016321,2]
[323099334,1713659443350,-1000.0,0.00016477,2]
[323099335,1713659443359,-500.0,0.00016477,2]
[323099336,1713659443368,-200.0,0.00016478,2]
[323099337,1713659443378,-1000.0,0.00016478,2]
[323099338,1713659443387,-203.091419,0.00016478,2]
[323099339,1713659443396,-500.0,0.00016478,2]
[323099340,1713659443406,-200.0,0.00016478,2]
[323099341,1713659443415,-1223.62381622,0.000165,2]
[323099342,1713659443424,-352.0,0.000165,2]
[323099343,1713659443434,-1000.0,0.000165,2]
[323099344,1713659443444,-222.0,0.000165,2]
[323099345,1713659443454,-500.0,0.00016592,2]
[323099346,1713659443464,-500.0,0.00016592,2]
[323099347,1713659443473,-500.0,0.00016592,2]
[323099348,1713659443483,-500.0,0.00016592,2]
[323099349,1713659443492,-500.0,0.00016592,2]
[323099350,1713659443502,-2257.98,0.00016592,2]
[323099351,1713659443511,-1646.72,0.00016592,2]
[323099352,1713659443521,-1365.4,0.00016592,2]
[323099353,1713659443530,-5659.69,0.00016592,2]
[323099354,1713659443539,-500.0,0.00016592,2]
[323099355,1713659443549,-500.0,0.00016592,2]
[323099356,1713659443558,-500.0,0.00016592,2]
[323099357,1713659443567,-500.0,0.00016592,2]
[323099358,1713659443576,-500.0,0.00016592,2]
[323099359,1713659443586,-500.0,0.00016592,2]
[323099360,1713659443595,-500.0,0.00016592,2]
[323099361,1713659443605,-1395.58,0.00016592,2]
[323099362,1713659443614,-500.0,0.00016592,2]
[323099363,1713659443623,-1431.6,0.00016592,2]
[323099364,1713659443633,-500.0,0.00016592,2]
[323099365,1713659443644,-500.0,0.00016592,2]
[323099366,1713659443653,-500.0,0.00016592,2]
[323099367,1713659443662,-500.0,0.00016592,2]
[323099368,1713659443672,-789.77,0.00016592,2]
[323099369,1713659443681,-500.0,0.00016592,2]
[323099370,1713659443690,-500.0,0.00016592,2]
[323099371,1713659443700,-621.68,0.00016592,2]
[323099372,1713659443711,-500.0,0.00016592,2]
[323099373,1713659443721,-500.0,0.00016592,2]
[323099374,1713659443731,-500.0,0.00016593,2]
[323099375,1713659443741,-500.0,0.00016593,2]
[323099376,1713659443750,-391.06,0.00016593,2]
[323099377,1713659443759,-445.82,0.00016593,2]
[323099378,1713659443769,-451.52,0.00016593,2]
[323099379,1713659443778,-500.0,0.00016593,2]
[323099380,1713659443788,-500.0,0.00016593,2]
[323099381,1713659443797,-500.0,0.00016593,2]
[323099382,1713659443807,-500.0,0.00016593,2]
[323099383,1713659443816,-500.0,0.00016593,2]
[323099384,1713659443825,-173.24,0.00016593,2]
[323099385,1713659443834,-500.0,0.00016593,2]
[323099386,1713659443843,-500.0,0.00016593,2]
[323099387,1713659443853,-500.0,0.00016593,2]
[323099388,1713659443862,-500.0,0.00016593,2]
[323099389,1713659443871,-500.0,0.00016593,2]
[323099390,1713659443880,-292.45,0.00016593,2]
[323099391,1713659443889,-500.0,0.00016593,2]
[323099392,1713659443899,-500.0,0.00016593,2]
[323099393,1713659443908,-1510.29,0.00016593,2]
[323099394,1713659443918,-157.38,0.00016593,2]
[323099395,1713659443928,-500.0,0.00016593,2]
[323099396,1713659443937,-500.0,0.00016593,2]
[323099397,1713659443946,-500.0,0.00016593,2]
[323099398,1713659443955,-500.0,0.00016593,2]
[323099399,1713659443965,-500.0,0.00016593,2]
[323099400,1713659443974,-500.0,0.00016593,2]
[323099401,1713659443983,-348.92,0.00016593,2]
[323099402,1713659443993,-576.65,0.00016593,2]
[323099403,1713659444002,-500.0,0.00016593,2]
[323099404,1713659444012,-682.29,0.00016593,2]
[323099405,1713659444021,-1841.35,0.00016593,2]
[323099406,1713659444030,-683.65,0.00016593,2]
[323099407,1713659444040,-264.52752535,0.00016593,2]
[323099408,1713659444053,-235.47247465,0.00016593,2]
[323099409,1713659444063,-655.32298056,0.00016593,2]
[323099410,1713659444127,-25.07701944,0.00016593,2]
[323099411,1713659444137,-474.92298056,0.00016593,2]
[323099413,1713659445748,-336.955,0.00016318,2]
[323099414,1713659445912,-163.045,0.00016318,2]
[323099415,1713659445921,-254.065,0.00016592,2]
[323099416,1713659445934,-245.935,0.00016592,2]
[323099417,1713659445944,-25.07701944,0.00016593,2]
[323099418,1713659445953,-116.65142278,0.00016593,2]
[323099483,1713660565132,-213.8792849,0.00013259,2]
[323099484,1713660565153,-674.21,0.0001326,2]
[323099496,1713660631800,-1250.0,0.00014,2]
[323099497,1713660631810,-213.8792849,0.00015093,2]
[323099498,1713660631820,-128.4787151,0.00015094,2]
[323099499,1713660631833,-21.5212849,0.00015094,2]
[323099500,1713660631843,-187.01,0.00015094,2]
[323099501,1713660631852,-504.2687151,0.00015116,2]
[323099502,1713660631869,-2478.6112849,0.00015116,2]
[323099503,1713660631878,-711.22379446,0.00015139,2]
[323099504,1713660631889,-1723.49402903,0.00015139,2]
[323099505,1713660631916,-133.42217651,0.00015139,2]
[323099506,1713660631926,-161.37,0.0001516,2]
[323099507,1713660631935,-814.4,0.00015255,2]
[323099508,1713660631945,-190.4,0.00015296,2]
[323099509,1713660631955,-674.21,0.00015524,2]
[323099510,1713660631965,-150.0,0.00015562,2]
[323099511,1713660631975,-299.99,0.00015562,2]
[323099512,1713660631986,-6033.74,0.00015562,2]
[323099513,1713660631995,-8773.34,0.00015562,2]
[323099514,1713660632005,-7715.32,0.00015562,2]
[323099515,1713660632014,-25293.25,0.00015562,2]
[323099516,1713660632023,-350.29,0.000159,2]
[323099517,1713660632034,-610.96,0.00015924,2]
[323099518,1713660632043,-4263.1224314,0.00015934,2]
[323099519,1713660632054,-635.95416192,0.00015943,2]
[323099520,1713660632063,-1253.28,0.00015944,2]
[323099521,1713660632073,-500.0,0.00015944,2]
[323099522,1713660632082,-500.0,0.00015944,2]
[323099524,1713660632092,-500.0,0.00015944,2]
[323099525,1713660632101,-1384.43,0.00015944,2]
[323099527,1713660632112,-500.0,0.00015944,2]
[323099529,1713660632120,-218.76,0.00015944,2]
[323099531,1713660632129,-311.58,0.00015944,2]
[323099533,1713660632139,-500.0,0.00015944,2]
[323099535,1713660632148,-614.62,0.00015944,2]
[323099537,1713660632157,-185.87,0.00015944,2]
[323099539,1713660632167,-500.0,0.00015944,2]
[323099541,1713660632176,-558.22,0.00015944,2]
[323099543,1713660632185,-500.0,0.00015944,2]
[323099545,1713660632195,-512.19,0.00015944,2]
[323099547,1713660632204,-500.44,0.00015944,2]
[323099549,1713660632214,-756.86,0.00015944,2]
[323099551,1713660632222,-500.0,0.00015944,2]
[323099552,1713660632232,-500.0,0.00015944,2]
[323099553,1713660632243,-500.0,0.00015944,2]
[323099554,1713660632252,-500.0,0.00015944,2]
[323099555,1713660632261,-591.9,0.00015944,2]
[323099556,1713660632271,-500.0,0.00015944,2]
[323099557,1713660632280,-500.0,0.00015944,2]
[323099558,1713660632290,-156.05217676,0.00015944,2]
[323099559,1713660632299,-500.0,0.00015944,2]
[323099560,1713660632309,-474.72,0.00015944,2]
[323099561,1713660632319,-500.0,0.00015944,2]
[323099562,1713660632329,-200.24,0.00015944,2]
[323099563,1713660632338,-313.95,0.00015944,2]
[323099564,1713660632348,-500.0,0.00015944,2]
[323099565,1713660632359,-500.0,0.00015944,2]
[323099566,1713660632368,-500.0,0.00015944,2]
[323099567,1713660632378,-448.56,0.00015944,2]
[323099568,1713660632387,-500.0,0.00015944,2]
[323099569,1713660632397,-500.0,0.00015944,2]
[323099570,1713660632407,-500.0,0.00015944,2]
[323099571,1713660632417,-500.0,0.00015944,2]
[323099572,1713660632426,-313.59,0.00015944,2]
[323099573,1713660632436,-500.0,0.00015944,2]
[323099574,1713660632446,-500.0,0.00015944,2]
[323099575,1713660632456,-500.0,0.00015944,2]
[323099576,1713660632465,-500.0,0.00015944,2]
[323099577,1713660632479,-500.0,0.00015944,2]
[323099578,1713660632489,-500.0,0.00015944,2]
[323099579,1713660632498,-500.0,0.00015944,2]
[323099580,1713660632507,-1687.91,0.00015944,2]
[323099581,1713660632517,-500.0,0.00015944,2]
[323099582,1713660632527,-528.6,0.00015944,2]
[323099583,1713660632536,-500.0,0.00015944,2]
[323099584,1713660632546,-500.0,0.00015944,2]
[323099585,1713660632556,-361.56,0.00015944,2]
[323099586,1713660632566,-626.68,0.00015944,2]
[323099587,1713660632575,-500.0,0.00015944,2]
[323099588,1713660632585,-906.38,0.00015944,2]
[323099589,1713660632594,-3090.55,0.00015944,2]
[323099590,1713660632604,-249.80779472,0.00015944,2]
[323099591,1713660632615,-500.0,0.00015944,2]
[323099592,1713660632625,-224.1931856,0.00015944,2]
[323099593,1713660632634,-500.0,0.00015944,2]
[323099594,1713660632644,-500.0,0.00015944,2]
[323099595,1713660632654,-1006.81,0.00015944,2]
[323099596,1713660632664,-623.7,0.00015944,2]
[323099597,1713660632673,-500.0,0.00015944,2]
[323099598,1713660632683,-1040.92,0.00015944,2]
[323099599,1713660632694,-3050.51,0.00015944,2]
[323099600,1713660632703,-535.68,0.00015944,2]
[323099601,1713660632713,-500.0,0.00015944,2]
[323099602,1713660632722,-500.0,0.00015944,2]
[323099603,1713660632732,-500.0,0.00015944,2]
[323099604,1713660632741,-500.0,0.00015944,2]
[323099605,1713660632751,-500.0,0.00015944,2]
[323099606,1713660632761,-500.0,0.00015944,2]
[323099607,1713660632770,-790.69,0.00015944,2]
[323099608,1713660632780,-503.23,0.00015944,2]
[323099609,1713660632789,-500.0,0.00015944,2]
[323099610,1713660632799,-1873.56,0.00015944,2]
[323099611,1713660632808,-500.0,0.00015944,2]
[323099612,1713660632818,-500.0,0.00015944,2]
[323099613,1713660632827,-500.0,0.00015944,2]
[323099614,1713660632837,-550.32,0.00015944,2]
[323099615,1713660632846,-1032.1,0.00015944,2]
[323099616,1713660632857,-336.955,0.00015944,2]
[323099617,1713660632866,-1578.11,0.00015944,2]
[323099618,1713660632875,-3558.06,0.00015944,2]
[323099619,1713660632883,-500.0,0.00015944,2]
[323099620,1713660632892,-500.0,0.00015944,2]
[323099621,1713660632902,-500.0,0.00015944,2]
[323099622,1713660632911,-500.0,0.00015944,2]
[323099623,1713660632920,-5423.87,0.00015944,2]
[323099624,1713660632929,-500.0,0.00015944,2]
[323099625,1713660632939,-500.0,0.00015944,2]
[323099626,1713660632948,-500.0,0.00015944,2]
[323099627,1713660632958,-500.0,0.00015944,2]
[323099628,1713660632968,-517.3,0.00015944,2]
[323099629,1713660632977,-2163.9,0.00015944,2]
[323099630,1713660632986,-500.0,0.00015944,2]
[323099631,1713660632995,-500.0,0.00015944,2]
[323099632,1713660633005,-500.0,0.00015944,2]
[323099633,1713660633014,-1308.51,0.00015944,2]
[323099634,1713660633023,-500.0,0.00015944,2]
[323099635,1713660633034,-500.0,0.00015944,2]
[323099636,1713660633043,-500.0,0.00015944,2]
[323099637,1713660633053,-500.0,0.00015944,2]
[323099638,1713660633062,-500.0,0.00015944,2]
[323099639,1713660633071,-1337.43,0.00015944,2]
[323099640,1713660633081,-638.45,0.00015944,2]
[323099641,1713660633090,-500.0,0.00015944,2]
[323099642,1713660633099,-500.0,0.00015944,2]
[323099643,1713660633112,-500.0,0.00015944,2]
[323099644,1713660633121,-500.0,0.00015944,2]
[323099645,1713660633130,-500.0,0.00015944,2]
[323099646,1713660633139,-500.0,0.00015944,2]
[323099647,1713660633147,-500.0,0.00015944,2]
[323099648,1713660633157,-500.0,0.00015944,2]
[323099649,1713660633166,-500.0,0.00015944,2]
[323099650,1713660633175,-500.0,0.00015944,2]
[323099651,1713660633185,-500.0,0.00015944,2]
[323099652,1713660633193,-500.0,0.00015944,2]
[323099653,1713660633202,-500.0,0.00015944,2]
[323099654,1713660633212,-500.0,0.00015944,2]
[323099655,1713660633221,-500.0,0.00015944,2]
[323099656,1713660633230,-500.0,0.00015944,2]
[323099657,1713660633239,-968.32,0.00015944,2]
[323099658,1713660633249,-500.0,0.00015944,2]
[323099659,1713660633258,-500.0,0.00015944,2]
[323099660,1713660633268,-500.0,0.00015944,2]
[323099661,1713660633277,-639.7,0.00015944,2]
[323099662,1713660633286,-500.0,0.00015944,2]
[323099663,1713660633296,-500.0,0.00015944,2]
[323099664,1713660633305,-595.77,0.00015944,2]
[323099665,1713660633314,-500.0,0.00015944,2]
[323099666,1713660633324,-500.0,0.00015944,2]
[323099667,1713660633334,-500.0,0.00015944,2]
[323099668,1713660633344,-500.0,0.00015944,2]
[323099669,1713660633353,-500.0,0.00015944,2]
[323099670,1713660633365,-500.0,0.00015944,2]
[323099671,1713660633374,-500.0,0.00015944,2]
[323099672,1713660633384,-1371.95,0.00015944,2]
[323099673,1713660633394,-500.0,0.00015944,2]
[323099674,1713660633403,-500.0,0.00015944,2]
[323099675,1713660633413,-166.44157637,0.00015945,2]
[323099676,1713660633422,-3288.708,0.00015945,2]
[323099677,1713660633431,-100000.0,0.00015945,2]
[323099678,1713660633441,-6067.05697891,0.00015945,2]
[323099679,1713660633461,-3237.2,0.00015945,2]
[323099680,1713660633472,-387.1825779,0.00015945,2]
[323099681,1713660633488,-1457.68,0.00015945,2]
[323099682,1713660633505,-297.90292434,0.00015945,2]
[323099689,1713660638066,-500.0,0.00015944,2]
[323099690,1713660638075,-913.72,0.00015944,2]
[323099691,1713660638092,-287.34,0.00015944,2]
[323099692,1713660638102,-500.0,0.00015944,2]
[323099693,1713660638112,-500.0,0.00015944,2]
[323099694,1713660638121,-20335.77162031,0.00015945,2]
[323099695,1713660638144,-32241.6189343,0.00015945,2]
[323099836,1713660639885,-500.0,0.00015944,2]
[323099838,1713660639895,-813.31,0.00015945,2]
[323099854,1713660640064,-419.89769935,0.00015944,2]
[323099876,1713660640776,-80.10230065,0.00015944,2]
[323099877,1713660640786,-346.77902616,0.00015944,2]
[323099878,1713660640834,-40.84097384,0.00015944,2]
[323099879,1713660640843,-7759.15902616,0.00015945,2]
[323099898,1713660642953,-1617.58,0.00015944,2]
[323099899,1713660642962,-26762.60188143,0.00015945,2]
[323099900,1713660643190,-836.60016149,0.00015945,2]
[323100134,1713661594134,-449.556772,0.0001287,2]
[323100135,1713661594155,-433.5427578,0.00012871,2]
[323100139,1713661758091,-155.0,0.0001287,2]
[323100140,1713661758113,-248.6472422,0.00012871,2]
[323100141,1713661758132,-258.02517572,0.00012871,2]
[323100142,1713661758153,-213.8792849,0.00013699,2]
[323100143,1713661758172,-214.91269718,0.000137,2]
[323100149,1713661831934,-257.7801669,0.00012871,2]
[323100151,1713661831946,-285.08730282,0.000137,2]
[323100153,1713661831955,-227.79228175,0.00014824,2]
[323100154,1713661832095,-772.20771825,0.00014824,2]
[323100155,1713661832105,-80.11340835,0.00014824,2]
[323100156,1713661832116,-520.13962403,0.00014824,2]
[323100157,1713661832128,-1111.16696762,0.00014824,2]
[323100158,1713661832137,-194.85347722,0.00014852,2]
[323100159,1713661832153,-45.14652278,0.00014852,2]
[323100160,1713661832163,-180.28,0.00014927,2]
[323100161,1713661832172,-163.44,0.00014935,2]
[323100162,1713661832181,-1024.29790922,0.00015,2]
[323100163,1713661832192,-971.512026,0.00015,2]
[323100164,1713661832202,-500.0,0.00015022,2]
[323100165,1713661832210,-682.19,0.00015135,2]
[323100166,1713661832219,-11991.39,0.0001531,2]
[323100167,1713661832229,-162.7,0.000155,2]
[323100168,1713661832240,-636.65516977,0.00015527,2]
[323100169,1713661832250,-412.63,0.00015591,2]
[323100170,1713661832259,-908.76,0.00015591,2]
[323100172,1713661832268,-412.35,0.000157,2]
[323100174,1713661832278,-163.44,0.00015713,2]
[323100175,1713661832288,-683.9535,0.00015744,2]
[323100176,1713661832297,-2004.53694121,0.00015745,2]
[323100177,1713661832311,-1201.52817431,0.00015745,2]
[323100180,1713661832329,-2750.99028448,0.00015745,2]
[323100181,1713661832339,-3358.9298,0.00015745,2]
[323100182,1713661832348,-1435.975,0.00015745,2]
[323100183,1713661832358,-167.82,0.00015831,2]
[323100184,1713661832367,-15030.53038949,0.00015834,2]
[323100187,1713661832376,-155.0511863,0.00015842,2]
[323100189,1713661832386,-8853.76282003,0.00015842,2]
[323100191,1713661832397,-444.13902591,0.00015843,2]
[323100193,1713661832406,-78701.8396,0.00015844,2]
[323100195,1713661832415,-44449.577,0.00015845,2]
[323100197,1713661832425,-335.7407,0.00015845,2]
[323100199,1713661832434,-31615.779,0.00015845,2]
[323100200,1713661832443,-235.710195,0.0001589,2]
[323100201,1713661832452,-500.0,0.00015942,2]
[323100202,1713661832461,-1512.35,0.00015942,2]
[323100203,1713661832471,-5197.88,0.00015942,2]
[323100204,1713661832480,-500.0,0.00015942,2]
[323100205,1713661832489,-171.56,0.00015942,2]
[323100206,1713661832498,-500.0,0.00015942,2]
[323100207,1713661832507,-500.0,0.00015942,2]
[323100208,1713661832516,-1281.7,0.00015942,2]
[323100209,1713661832525,-500.0,0.00015942,2]
[323100210,1713661832535,-607.78,0.00015942,2]
[323100211,1713661832544,-500.0,0.00015942,2]
[323100212,1713661832554,-500.0,0.00015942,2]
[323100213,1713661832563,-500.0,0.00015942,2]
[323100214,1713661832572,-183.01240642,0.00015943,2]
[323100215,1713661832582,-725.32,0.00015943,2]
[323100216,1713661832592,-570.95,0.00015943,2]
[323100217,1713661832601,-500.0,0.00015943,2]
[323100218,1713661832610,-500.0,0.00015943,2]
[323100219,1713661832619,-500.0,0.00015943,2]
[323100220,1713661832628,-500.0,0.00015943,2]
[323100221,1713661832638,-500.0,0.00015943,2]
[323100222,1713661832647,-500.0,0.00015943,2]
[323100223,1713661832657,-500.0,0.00015943,2]
[323100224,1713661832666,-336.60016149,0.00015943,2]
[323100225,1713661832676,-500.0,0.00015943,2]
[323100226,1713661832685,-500.0,0.00015943,2]
[323100227,1713661832694,-500.0,0.00015943,2]
[323100228,1713661832703,-500.0,0.00015943,2]
[323100229,1713661832712,-500.0,0.00015943,2]
[323100230,1713661832721,-500.0,0.00015943,2]
[323100231,1713661832730,-1326.75,0.00015943,2]
[323100232,1713661832740,-500.0,0.00015943,2]
[323100233,1713661832749,-500.0,0.00015943,2]
[323100234,1713661832758,-500.0,0.00015943,2]
[323100235,1713661832767,-500.0,0.00015943,2]
[323100236,1713661832777,-355.49,0.00015943,2]
[323100237,1713661832785,-506.57,0.00015943,2]
[323100238,1713661832794,-964.86,0.00015943,2]
[323100239,1713661832805,-868.61,0.00015943,2]
[323100240,1713661832828,-626.54,0.00015943,2]
[323100241,1713661832846,-597.71,0.00015943,2]
[323100242,1713661832855,-500.0,0.00015943,2]
[323100243,1713661832865,-500.0,0.00015943,2]
[323100244,1713661832878,-500.0,0.00015943,2]
[323100245,1713661832888,-500.0,0.00015943,2]
[323100246,1713661832898,-2923.4,0.00015943,2]
[323100247,1713661832908,-500.0,0.00015943,2]
[323100248,1713661832919,-500.0,0.00015943,2]
[323100249,1713661832930,-1136.14,0.00015943,2]
[323100250,1713661832940,-1795.5,0.00015943,2]
[323100251,1713661832952,-1289.09,0.00015943,2]
[323100252,1713661832961,-500.0,0.00015943,2]
[323100253,1713661832971,-757.75,0.00015943,2]
[323100254,1713661832982,-500.0,0.00015943,2]
[323100255,1713661832991,-500.0,0.00015943,2]
[323100256,1713661833001,-527.39,0.00015943,2]
[323100257,1713661833011,-267.47,0.00015943,2]
[323100258,1713661833021,-500.0,0.00015943,2]
[323100259,1713661833031,-500.0,0.00015943,2]
[323100260,1713661833041,-3409.81,0.00015943,2]
[323100261,1713661833053,-500.0,0.00015943,2]
[323100262,1713661833063,-500.0,0.00015943,2]
[323100263,1713661833074,-989.1,0.00015943,2]
[323100264,1713661833084,-2073.74,0.00015943,2]
[323100265,1713661833093,-500.0,0.00015943,2]
[323100266,1713661833102,-500.0,0.00015943,2]
[323100267,1713661833112,-1253.98,0.00015943,2]
[323100268,1713661833122,-500.0,0.00015943,2]
[323100269,1713661833131,-500.0,0.00015943,2]
[323100270,1713661833141,-500.0,0.00015943,2]
[323100271,1713661833151,-500.0,0.00015943,2]
[323100272,1713661833161,-500.0,0.00015943,2]
[323100273,1713661833171,-175.39375289,0.00015943,2]
[323100274,1713661833184,-324.60624711,0.00015943,2]
[323100275,1713661833194,-144.56375289,0.00015943,2]
[323100276,1713661838293,-321.05367639,0.00015943,2]
[323100277,1713661838311,-34.38257072,0.00015943,2]
[323100278,1713661838320,-500.0,0.00015943,2]
[323100279,1713661838330,-500.0,0.00015943,2]
[323100281,1713661838339,-500.0,0.00015943,2]
[323100283,1713661838348,-138.87073246,0.00015943,2]
[323100286,1713661838365,-361.12926754,0.00015943,2]
[323100288,1713661838373,-443.87078246,0.00015943,2]
[323100413,1713661840172,-500.0,0.00015942,2]
[323100414,1713661840182,-56.12921754,0.00015943,2]
[323100415,1713661840192,-1314.79,0.00015943,2]
[323100416,1713661840201,-500.0,0.00015943,2]
[323100417,1713661840211,-500.0,0.00015943,2]
[323100418,1713661840220,-500.0,0.00015943,2]
[323100419,1713661840230,-227.28134946,0.00015943,2]
[323100420,1713661840280,-745.0,0.0001287,2]
[323100421,1713661840394,-1038.17554806,0.0001287,2]
[323100422,1713661840404,-272.71865054,0.00015943,2]
[323100423,1713661840413,-500.0,0.00015943,2]
[323100424,1713661840422,-500.0,0.00015943,2]
[323100425,1713661840431,-4957.31830756,0.00015944,4]
[323100426,1713661840440,-1260.91,0.00015944,2]
[323100427,1713661840449,-645.16,0.00015944,2]
[323100428,1713661840458,-500.0,0.00015944,2]
[323100429,1713661840467,-500.0,0.00015944,2]
[323100430,1713661840476,-500.0,0.00015944,2]
[323100431,1713661840485,-500.0,0.00015944,2]
[323100432,1713661840494,-500.0,0.00015944,2]
[323100433,1713661840503,-500.0,0.00015944,2]
[323100434,1713661840512,-500.0,0.00015944,2]
[323100435,1713661840521,-500.0,0.00015944,2]
[323100436,1713661840530,-500.0,0.00015944,2]
[323100437,1713661840539,-500.0,0.00015944,2]
[323100438,1713661840548,-500.0,0.00015944,2]
[323100439,1713661840558,-500.0,0.00015944,2]
[323100440,1713661840567,-500.0,0.00015944,2]
[323100441,1713661840577,-500.0,0.00015944,2]
[323100442,1713661840587,-500.0,0.00015944,2]
[323100443,1713661840596,-500.0,0.00015944,2]
[323100444,1713661840606,-500.0,0.00015944,2]
[323100445,1713661840616,-500.0,0.00015944,2]
[323100446,1713661840628,-500.0,0.00015944,2]